bitfinex-derivatives/quotes_SOLF0:USTF0_20251209
["timestamp","ask_amount","ask_price","bid_price","bid_amount"]
[1765252884213,71.80995584,134.11,134.1,0.04843781]
[1765252889329,76.91387457,134.11,134.1,0.04843781]
[1765252890132,71.80995584,134.11,134.1,0.04843781]
[1765252893234,71.80995584,134.11,134.1,116.60406862]
[1765252893838,66.46,134.11,134.1,116.60406862]
[1765252894137,71.82197678,134.11,134.1,116.60406862]
[1765252894327,76.93237159,134.11,134.1,116.60406862]
[1765252895738,76.93228022,134.11,134.1,116.60406862]
[1765252896231,76.93230341,134.11,134.1,116.60406862]
[1765252897337,71.82197678,134.11,134.1,116.60406862]
[1765252897838,78.39292706,134.11,134.1,116.60406862]
[1765252899140,78.39292706,134.11,134.1,0.04843781]
[1765252903542,76.93225265,134.11,134.1,0.04843781]
[1765252909648,76.93945802,134.11,134.1,0.04843781]
[1765252911048,76.93945802,134.11,134.1,116.60406862]
[1765252917042,76.93945802,134.11,134.1,0.04843781]
[1765252921750,68.76918215,134.11,134.1,0.04843781]
[1765252922949,68.76918215,134.11,134.1,116.60406862]
[1765252923757,71.93918215,134.11,134.1,116.60406862]
[1765252924853,68.76918215,134.11,134.1,116.60406862]
[1765252926548,63.4,134.11,134.1,116.60406862]
[1765252933172,66.69,134.11,134.1,116.60406862]
[1765252933468,63.4,134.11,134.1,116.60406862]
[1765252934365,66.69,134.11,134.1,116.60406862]
[1765252950298,63.4,134.11,134.1,116.60406862]
[1765252951690,60.80659944,134.11,134.1,116.60406862]
[1765252961503,0.05118539,134.13,134.11,6.7103]
[1765252961903,63.38,134.16,134.12,104.3739]
[1765252962098,3.28,134.18,134.12,104.3739]
[1765252962099,3.28,134.18,134.12,160.12293137]
[1765252962999,0.05188377,134.16,134.14,0.04904739]
[1765252963610,0.05188377,134.16,134.14,6.75754739]
[1765252967408,0.05188377,134.16,134.14,62.50657876]
[1765252980218,3.36188377,134.16,134.14,62.50657876]
[1765252980828,3.36188377,134.16,134.14,55.79807876]
[1765252983429,0.05188377,134.16,134.14,55.79807876]
[1765252984630,0.05188377,134.16,134.14,62.50667876]
[1765252987231,0.05188377,134.16,134.14,63.96628392]
[1765252989837,0.05188377,134.16,134.14,62.50667876]
[1765252996342,3.36188377,134.16,134.14,62.50667876]
[1765253002644,3.36188377,134.16,134.14,55.79807876]
[1765253002839,8.52789283,134.15,134.14,0.04904739]
[1765253004250,3.2,134.14,134.09,1.45960516]
[1765253004552,11.8936299,134.15,134.09,55.74903137]
[1765253004553,3.2,134.12,134.09,55.74903137]
[1765253005353,3.25162805,134.12,134.09,55.79960718]
[1765253005837,3.25162805,134.12,134.09,0.05057581]
[1765253012162,3.25162805,134.12,134.09,55.79960718]
[1765253023875,3.25162805,134.12,134.09,0.05057581]
[1765253029788,3.25162805,134.12,134.09,119.05057581]
[1765253030994,9.96162805,134.12,134.09,119.05057581]
[1765253031188,3.36,134.11,134.09,119.05057581]
[1765253035600,3.36,134.11,134.09,0.05057581]
[1765253037502,66.76,134.1,134.09,0.05057581]
[1765253044506,3.13,134.09,134.06,119.0]
[1765253045512,3.18635257,134.09,134.06,119.0]
[1765253047612,3.18635257,134.09,134.04,144.24211958]
[1765253047908,8.46074714,134.08,134.04,144.24211958]
[1765253048109,3.13,134.08,134.04,144.24211958]
[1765253050115,3.13,134.08,134.04,137.52841958]
[1765253050613,3.13,134.08,134.04,256.52841958]
[1765253053111,3.13,134.06,134.04,119.0]
[1765253055110,6.712,134.08,134.04,119.0]
[1765253055111,3.13,134.07,134.04,119.0]
[1765253064126,3.14635257,134.09,134.04,119.0]
[1765253064422,5.3156322,134.08,134.04,119.0]
[1765253064619,3.14635257,134.09,134.04,119.0]
[1765253064816,5.31552533,134.08,134.04,119.0]
[1765253065015,3.14635257,134.09,134.04,119.0]
[1765253065217,5.31552533,134.08,134.04,119.0]
[1765253065418,3.14635257,134.09,134.04,119.0]
[1765253065617,5.31475086,134.08,134.04,119.0]
[1765253065823,3.14635257,134.09,134.04,119.0]
[1765253066022,5.31475086,134.08,134.04,119.0]
[1765253066217,3.14635257,134.09,134.04,119.0]
[1765253066520,5.31482708,134.08,134.04,119.0]
[1765253066718,3.14635257,134.09,134.04,119.0]
[1765253066918,3.09,134.08,134.04,119.0]
[1765253071522,0.05635257,134.09,134.06,6.7127]
[1765253071718,0.05635257,134.09,134.04,121.28297514]
[1765253073616,0.05635257,134.09,134.05,6.7131]
[1765253075723,3.14635257,134.09,134.04,121.28297514]
[1765253077730,3.14635257,134.09,134.04,119.0]
[1765253079134,3.09,134.07,134.04,119.0]
[1765253080135,3.09,134.07,134.01,119.0]
[1765253080323,3.13910978,134.05,134.01,119.0]
[1765253081424,3.13910978,134.05,134.01,125.7152]
[1765253082528,3.13910978,134.05,134.01,119.0]
[1765253082833,3.09,134.03,134.01,119.0]
[1765253083031,3.09,134.03,133.99,125.716]
[1765253084832,3.09,134.03,133.99,119.0]
[1765253088635,3.27910978,134.05,133.99,119.0]
[1765253088936,8.59081319,134.04,133.99,119.0]
[1765253089135,3.23,134.04,133.99,119.0]
[1765253089438,3.23,134.04,133.99,125.7162]
[1765253094637,3.23,134.04,133.99,127.17895606]
[1765253095438,4.69275606,134.04,133.99,119.0]
[1765253095643,3.23,134.03,133.99,119.0]
[1765253096938,3.23,134.03,133.95,125.718]
[1765253097131,0.04917552,134.0,133.96,1.46275606]
[1765253097336,0.04917552,134.0,133.96,120.46275606]
[1765253099142,3.27917552,134.0,133.96,120.46275606]
[1765253099342,0.04917552,134.0,133.96,120.46275606]
[1765253100448,0.04917552,134.0,133.96,119.0]
[1765253100743,0.04917552,134.0,133.96,120.46275606]
[1765253101748,0.04917552,134.0,133.96,127.18045606]
[1765253103642,0.04917552,134.0,133.97,6.7171]
[1765253104445,0.04917552,134.0,133.97,8.17985606]
[1765253107044,3.13917552,134.0,133.97,120.46275606]
[1765253107243,3.13917552,134.0,133.97,119.0]
[1765253108146,0.04917552,134.0,133.97,120.46275606]
[1765253109454,0.04917552,134.0,133.97,127.17995606]
[1765253116044,0.04917552,134.0,133.97,125.7172]
[1765253122870,3.34917552,134.0,133.97,125.7172]
[1765253123072,0.04917552,134.0,133.97,125.7172]
[1765253123673,3.34917552,134.0,133.97,125.7172]
[1765253123871,3.34917552,134.0,133.97,119.0]
[1765253129770,5.57550135,133.99,133.97,119.0]
[1765253129971,3.34917552,134.0,133.97,119.0]
[1765253130270,5.57550135,133.99,133.97,119.0]
[1765253130582,3.34917552,134.0,133.97,119.0]
[1765253138275,5.58013865,133.99,133.97,119.0]
[1765253138477,3.34917552,134.0,133.97,119.0]
[1765253138782,5.57782635,133.99,133.97,119.0]
[1765253138978,3.34917552,134.0,133.97,119.0]
[1765253139180,5.57782635,133.99,133.97,119.0]
[1765253139479,3.34917552,134.0,133.97,119.0]
[1765253139684,5.57930383,133.99,133.97,119.0]
[1765253139878,3.34917552,134.0,133.97,119.0]
[1765253140077,5.57930383,133.99,133.97,119.0]
[1765253140278,3.34917552,134.0,133.97,119.0]
[1765253140479,5.58062947,133.99,133.97,119.0]
[1765253140680,3.34917552,134.0,133.97,119.0]
[1765253140881,8.88062947,133.99,133.97,119.0]
[1765253141077,3.3,133.99,133.97,119.0]
[1765253141682,3.34917552,134.0,133.97,119.0]
[1765253141883,5.58136885,133.99,133.97,119.0]
[1765253142182,3.34917552,134.0,133.97,119.0]
[1765253142485,5.5815603,133.99,133.97,119.0]
[1765253142687,3.34917552,134.0,133.97,119.0]
[1765253142888,5.58156032,133.99,133.97,119.0]
[1765253143186,3.34917552,134.0,133.97,119.0]
[1765253143385,5.58170962,133.99,133.97,119.0]
[1765253143585,3.34917552,134.0,133.97,119.0]
[1765253143784,5.58170962,133.99,133.97,119.0]
[1765253143986,3.34917552,134.0,133.97,119.0]
[1765253144189,5.58170962,133.99,133.97,119.0]
[1765253144490,3.34917552,134.0,133.97,119.0]
[1765253144685,5.58171881,133.99,133.97,119.0]
[1765253144884,3.34917552,134.0,133.97,119.0]
[1765253145085,5.58171881,133.99,133.97,119.0]
[1765253145287,3.34917552,134.0,133.97,119.0]
[1765253145590,5.58168009,133.99,133.97,119.0]
[1765253145790,3.34917552,134.0,133.97,119.0]
[1765253145992,5.58168009,133.99,133.97,119.0]
[1765253146186,3.34917552,134.0,133.97,119.0]
[1765253146387,5.58158958,133.99,133.97,119.0]
[1765253146588,3.34917552,134.0,133.97,119.0]
[1765253146890,5.58159563,133.99,133.97,119.0]
[1765253147189,3.34917552,134.0,133.97,119.0]
[1765253147392,5.58171941,133.99,133.97,119.0]
[1765253147584,3.34917552,134.0,133.97,119.0]
[1765253147890,5.58171941,133.99,133.97,119.0]
[1765253148082,3.34917552,134.0,133.97,119.0]
[1765253148281,5.5817442,133.99,133.97,119.0]
[1765253148478,3.34917552,134.0,133.97,119.0]
[1765253148683,5.58168145,133.99,133.97,119.0]
[1765253148881,3.34917552,134.0,133.97,119.0]
[1765253149078,5.58168145,133.99,133.97,119.0]
[1765253149280,3.34917552,134.0,133.97,119.0]
[1765253149482,5.5818727,133.99,133.97,119.0]
[1765253149682,3.34917552,134.0,133.97,119.0]
[1765253149988,5.5818727,133.99,133.97,119.0]
[1765253150186,3.34917552,134.0,133.97,119.0]
[1765253150379,5.5821093,133.99,133.97,119.0]
[1765253150582,3.34917552,134.0,133.97,119.0]
[1765253150784,5.5821093,133.99,133.97,119.0]
[1765253151082,3.34917552,134.0,133.97,119.0]
[1765253151282,5.58243807,133.99,133.97,119.0]
[1765253151483,3.34917552,134.0,133.97,119.0]
[1765253151685,5.58239698,133.99,133.97,119.0]
[1765253151993,3.34917552,134.0,133.97,119.0]
[1765253152193,5.58239698,133.99,133.97,119.0]
[1765253152394,3.34917552,134.0,133.97,119.0]
[1765253152595,5.58247298,133.99,133.97,119.0]
[1765253152794,3.34917552,134.0,133.97,119.0]
[1765253152995,5.58247298,133.99,133.97,119.0]
[1765253153198,3.34917552,134.0,133.97,119.0]
[1765253153397,5.58247337,133.99,133.97,119.0]
[1765253153696,3.34917552,134.0,133.97,119.0]
[1765253153891,5.58247337,133.99,133.97,119.0]
[1765253154095,3.34917552,134.0,133.97,119.0]
[1765253154298,5.58257448,133.99,133.97,119.0]
[1765253154497,3.34917552,134.0,133.97,119.0]
[1765253154697,5.58257448,133.99,133.97,119.0]
[1765253154897,3.34917552,134.0,133.97,119.0]
[1765253155099,5.58257448,133.99,133.97,119.0]
[1765253155292,3.34917552,134.0,133.97,119.0]
[1765253155600,3.09,133.98,133.97,119.0]
[1765253155798,8.6726678,133.98,133.97,119.0]
[1765253156195,3.09,133.97,133.94,116.55661095]
[1765253156497,8.6726678,133.96,133.94,116.55661095]
[1765253156687,3.09,133.96,133.94,116.55661095]
[1765253156885,5.58340997,133.95,133.94,116.55661095]
[1765253157292,3.09,133.96,133.94,116.55661095]
[1765253160500,0.04943385,133.97,133.94,116.55661095]
[1765253160703,0.04943385,133.97,133.94,118.84435672]
[1765253161498,0.04943385,133.97,133.94,125.56295672]
[1765253162099,0.04943385,133.97,133.95,6.718]
[1765253166608,0.04943385,133.97,133.95,123.27461095]
[1765253170023,0.04943385,133.97,133.95,116.55661095]
[1765253171513,3.13943385,133.97,133.95,71.79726464]
[1765253172012,0.04943385,133.97,133.95,71.79726464]
[1765253174618,5.60292251,133.96,133.92,71.79726464]
[1765253174806,0.04943385,133.97,133.92,74.08501041]
[1765253176611,0.04943385,133.97,133.93,6.7191]
[1765253180315,0.04943385,133.97,133.95,9.00584577]
[1765253180515,0.04943385,133.97,133.95,80.80311041]
[1765253193618,3.36,134.02,134.0,6.7158]
[1765253193823,5.5990436,134.01,134.0,78.51306464]
[1765253198232,3.40903606,134.02,134.0,78.51306464]
[1765253200326,5.59331913,134.01,133.99,71.84531247]
[1765253200528,3.40903606,134.02,133.99,71.84531247]
[1765253200724,5.59331913,134.01,133.99,71.84531247]
[1765253200928,3.40903606,134.02,133.99,71.84531247]
[1765253201129,5.59331913,134.01,133.99,71.84531247]
[1765253201329,3.40903606,134.02,133.99,71.84531247]
[1765253201530,5.59305362,134.01,133.99,78.56141247]
[1765253201736,3.40903606,134.02,133.99,78.56141247]
[1765253201935,5.59305362,134.01,133.99,78.56141247]
[1765253202232,3.40903606,134.02,133.99,78.56141247]
[1765253202433,5.59346527,134.01,133.99,78.56141247]
[1765253202733,3.40903606,134.02,133.99,71.84531247]
[1765253202934,3.36,134.0,133.99,71.84531247]
[1765253204929,0.04903606,134.02,133.99,71.84531247]
[1765253204930,3.36,134.01,133.99,0.04804783]
[1765253209936,0.04903606,134.02,133.99,0.04804783]
[1765253210235,5.59536376,134.01,133.99,0.04804783]
[1765253210436,3.23903606,134.02,133.99,0.04804783]
[1765253210634,5.59566288,134.01,133.99,0.04804783]
[1765253210834,3.23903606,134.02,133.99,0.04804783]
[1765253211037,5.59566288,134.01,133.99,71.84531247]
[1765253211334,3.23903606,134.02,133.99,71.84531247]
[1765253211534,5.59583767,134.01,133.99,78.56121247]
[1765253211837,3.23903606,134.02,133.99,78.56121247]
[1765253212037,5.59583767,134.01,133.99,78.56121247]
[1765253212237,3.23903606,134.02,133.99,78.56121247]
[1765253212436,5.5960531,134.01,133.99,78.56121247]
[1765253212639,3.23903606,134.02,133.99,78.56121247]
[1765253212838,5.5960531,134.01,133.99,78.56121247]
[1765253213038,3.23903606,134.02,133.99,78.56121247]
[1765253213338,8.7860531,134.01,133.99,78.56121247]
[1765253213534,3.19,134.01,133.99,78.56121247]
[1765253221343,5.60174695,134.0,133.99,78.56121247]
[1765253222638,0.04903606,134.02,134.0,6.7155]
[1765253222845,0.04903606,134.02,134.0,78.51276464]
[1765253222846,5.60345977,134.01,134.0,78.51276464]
[1765253223738,0.04903606,134.02,134.0,78.51276464]
[1765253224447,0.04903606,134.02,134.01,1.46303737]
[1765253226850,0.04903606,134.02,134.01,73.26030201]
[1765253232750,66.52,134.06,134.02,104.4527]
[1765253232951,66.52,134.06,134.03,1.46303737]
[1765253233845,66.57617682,134.06,134.03,1.51262676]
[1765253234453,66.57617682,134.06,134.04,6.7135]
[1765253234854,63.49617682,134.06,134.04,6.7135]
[1765253237150,0.05617682,134.06,134.05,1.46303737]
[1765253237448,0.05617682,134.06,134.05,73.26030201]
[1765253238044,3.08,134.1,134.07,6.7121]
[1765253238359,3.08,134.1,134.07,78.50936464]
[1765253239057,3.13137352,134.1,134.07,78.56660559]
[1765253239758,3.13137352,134.1,134.08,6.7115]
[1765253240951,3.13137352,134.1,134.07,73.31754296]
[1765253240952,3.13137352,134.1,134.07,0.05724095]
[1765253241148,3.3,134.09,134.07,0.05724095]
[1765253242151,4.76303737,134.08,134.03,104.4414]
[1765253242352,3.3,134.07,134.03,104.4414]
[1765253242560,3.3,134.07,134.05,6.7131]
[1765253243358,3.3475065,134.07,134.05,6.76482645]
[1765253252475,3.3475065,134.07,134.05,78.56209109]
[1765253255579,0.0475065,134.07,134.05,78.56209109]
[1765253257786,3.3475065,134.07,134.05,78.56209109]
[1765253258887,4.76303737,134.06,134.05,0.05172645]
[1765253259390,3.3,134.05,134.0,71.79726464]
[1765253259594,3.3,134.03,133.99,71.79726464]
[1765253260289,3.3,134.03,134.0,6.7155]
[1765253260486,3.34994856,134.03,134.0,0.04567933]
[1765253262088,3.34994856,134.03,134.0,1.5087167]
[1765253264387,3.34994856,134.03,134.0,73.30598134]
[1765253264994,3.34994856,134.03,134.0,71.84294397]
[1765253265191,0.04994856,134.03,134.0,78.55864397]
[1765253265395,0.04994856,134.03,134.0,71.84294397]
[1765253265596,0.04994856,134.03,134.01,1.46303737]
[1765253266487,0.04994856,134.03,134.01,8.17813737]
[1765253269899,3.21994856,134.03,134.01,8.17813737]
[1765253270086,3.21994856,134.03,134.01,6.7151]
[1765253270290,3.21994856,134.03,134.01,78.51236464]
[1765253274107,0.04994856,134.03,134.01,78.51236464]
[1765253278306,0.04994856,134.03,134.01,79.97540201]
[1765253278708,0.04994856,134.03,134.01,78.51236464]
[1765253281109,63.42,134.07,134.02,2.28502115]
[1765253281309,5.51203311,134.06,134.02,2.28502115]
[1765253281506,66.8,134.07,134.04,6.7136]
[1765253281697,63.42,134.07,134.04,78.51086464]
[1765253282108,63.46877546,134.07,134.04,78.56072863]
[1765253282299,63.46877546,134.07,134.05,6.713]
[1765253282498,0.04877546,134.07,134.05,78.51026464]
[1765253287713,3.42877546,134.07,134.05,71.79726464]
[1765253288107,3.42877546,134.07,134.04,71.84712863]
[1765253290616,0.04877546,134.07,134.04,78.56072863]
[1765253290809,3.42877546,134.07,134.04,78.56072863]
[1765253294022,3.42877546,134.07,134.04,0.04986399]
[1765253304132,3.37,134.05,134.04,0.04986399]
[1765253304332,8.88120868,134.05,134.04,0.04986399]
[1765253306333,3.37,134.04,133.99,6.7162]
[1765253306532,63.42,134.06,133.99,6.7162]
[1765253306533,3.37,134.02,133.99,6.7162]
[1765253307330,3.42736754,134.02,133.99,6.7619639]
[1765253311239,3.42736754,134.02,133.99,0.0457639]
[1765253312724,3.37,134.0,133.99,0.0457639]
[1765253315736,3.42736754,134.02,133.99,0.0457639]
[1765253325038,3.37,134.0,133.99,0.0457639]
[1765253341263,8.8772037,134.0,133.99,0.0457639]
[1765253343061,3.37,134.0,133.99,0.0457639]
[1765253346165,8.8863112,134.0,133.99,0.0457639]
[1765253350665,5.5163112,134.0,133.99,71.84302854]
[1765253350868,63.44,134.01,133.99,71.84302854]
[1765253351064,66.81,134.01,133.99,71.84302854]
[1765253351264,5.53169709,134.0,133.99,71.84302854]
[1765253351968,8.90169709,134.0,133.99,71.84302854]
[1765253356371,8.90169709,134.0,133.99,0.0457639]
[1765253368181,13.95683119,134.0,133.99,0.0457639]
[1765253369084,8.90169709,134.0,133.99,0.0457639]
[1765253370386,3.18,133.99,133.96,119.0]
[1765253370575,3.18,133.97,133.94,125.7184]
[1765253370980,66.62,133.97,133.94,125.7184]
[1765253371180,3.18,133.96,133.94,125.7184]
[1765253371380,3.23383222,133.96,133.94,6.7184]
[1765253373385,3.23383222,133.96,133.92,6.7194]
[1765253373572,5.53542212,133.95,133.92,6.7194]
[1765253373773,3.18,133.95,133.92,6.7194]
[1765253380588,3.18,133.95,133.93,6.7191]
[1765253383086,3.18,133.95,133.93,125.7191]
[1765253389203,3.26383222,133.96,133.93,125.7191]
[1765253397014,3.26383222,133.96,133.93,119.0]
[1765253399713,8.74097716,133.95,133.89,118.83849497]
[1765253399918,3.21,133.95,133.9,1.4641452]
[1765253400211,3.26383222,133.96,133.91,6.7202]
[1765253400415,5.5282056,133.95,133.91,6.7202]
[1765253400615,3.26383222,133.96,133.91,6.7202]
[1765253400818,11.05908906,133.95,133.92,8.1838452]
[1765253401116,0.05383222,133.96,133.92,8.1838452]
[1765253401419,5.52771542,133.95,133.92,8.1838452]
[1765253401616,0.05383222,133.96,133.92,8.1838452]
[1765253401819,5.52794525,133.95,133.92,8.1838452]
[1765253402015,3.26383222,133.96,133.92,8.1838452]
[1765253402217,5.52781236,133.95,133.92,8.1838452]
[1765253402418,3.26383222,133.96,133.92,6.7197]
[1765253402617,5.52808347,133.95,133.92,6.7197]
[1765253402822,0.05383222,133.96,133.93,6.719]
[1765253407018,0.05383222,133.96,133.93,125.55749497]
[1765253407827,0.05383222,133.96,133.94,6.7187]
[1765253408829,0.05383222,133.96,133.94,127.84494575]
[1765253410920,5.21583392,134.0,133.97,6.7173]
[1765253411126,5.53419553,133.99,133.97,125.55579497]
[1765253411426,3.34,134.01,133.97,125.55579497]
[1765253411624,5.53372669,134.0,133.97,125.55579497]
[1765253411824,5.53372669,133.99,133.97,125.55579497]
[1765253412023,0.04717273,133.99,133.97,125.60629252]
[1765253418626,3.14717273,133.99,133.97,118.88899252]
[1765253418830,8.63021942,133.98,133.97,118.88899252]
[1765253419032,0.04717273,133.99,133.97,118.88899252]
[1765253420534,0.04717273,133.99,133.97,125.60599252]
[1765253425232,3.14717273,133.99,133.97,125.60599252]
[1765253426330,3.14717273,133.99,133.97,118.88899252]
[1765253427634,3.14717273,133.99,133.97,0.05049755]
[1765253431042,5.52810877,133.98,133.97,0.05049755]
[1765253431341,8.62810877,133.98,133.97,0.05049755]
[1765253432835,13.83935439,133.98,133.97,0.05049755]
[1765253433837,20.81700494,133.98,133.97,0.05049755]
[1765253439748,3.1,133.97,133.91,125.55869497]
[1765253439944,3.1,133.95,133.91,125.55869497]
[1765253440151,8.62810877,133.94,133.91,125.55869497]
[1765253440441,5.52810877,133.93,133.91,125.55869497]
[1765253440641,3.1,133.94,133.91,125.55869497]
[1765253440845,5.78203684,133.93,133.91,125.55869497]
[1765253441039,3.15306078,133.94,133.91,125.55869497]
[1765253441336,5.78119193,133.93,133.91,125.55869497]
[1765253441540,3.15306078,133.94,133.91,125.55869497]
[1765253441849,5.78112991,133.93,133.91,125.55869497]
[1765253442051,0.05306078,133.94,133.92,6.7195]
[1765253442249,0.05306078,133.94,133.92,125.55799497]
[1765253442440,63.46,133.98,133.93,2.28775078]
[1765253442643,5.77942141,133.97,133.93,121.12624575]
[1765253442842,5.77942141,133.96,133.93,121.12624575]
[1765253443043,63.46,133.98,133.93,121.12624575]
[1765253443347,5.83669475,133.97,133.94,0.05027409]
[1765253443545,5.77937566,133.96,133.95,6.7182]
[1765253443748,0.05731909,133.97,133.95,6.7182]
[1765253447256,0.05731909,133.97,133.95,127.84444575]
[1765253447756,0.05731909,133.97,133.95,125.55669497]
[1765253454162,3.33,134.02,133.98,6.7167]
[1765253454462,3.33,134.02,133.98,125.55519497]
[1765253454758,70.43270629,134.03,133.98,125.55519497]
[1765253454963,3.33,134.04,133.99,104.4761]
[1765253455166,0.05417738,134.03,134.0,0.05504629]
[1765253455667,5.7426846,134.02,134.0,0.05504629]
[1765253455973,5.7426846,134.01,134.0,6.77084629]
[1765253456273,0.05417738,134.03,134.0,6.77084629]
[1765253456476,5.74160767,134.02,134.0,6.77084629]
[1765253456672,0.05417738,134.03,134.0,6.77084629]
[1765253456866,5.74160767,134.02,134.0,6.77084629]
[1765253457071,0.05417738,134.03,134.0,6.77084629]
[1765253457275,5.74059618,134.02,134.0,6.77084629]
[1765253457472,0.05417738,134.03,134.0,6.77084629]
[1765253457673,5.74059618,134.02,134.0,6.77084629]
[1765253457871,3.33,134.06,134.02,6.7146]
[1765253458072,5.74046359,134.05,134.02,6.7146]
[1765253458270,5.74046359,134.04,134.02,6.7146]
[1765253458470,3.33,134.06,134.02,6.7146]
[1765253458670,5.73696705,134.05,134.02,6.7146]
[1765253458971,5.73696705,134.04,134.02,6.7146]
[1765253459164,0.05460574,134.05,134.02,6.7146]
[1765253459366,5.73473836,134.04,134.02,6.7146]
[1765253459567,3.38460574,134.05,134.02,6.7146]
[1765253459865,3.33,134.03,134.0,6.77064629]
[1765253460072,3.33,134.03,134.0,0.05504629]
[1765253460272,2.28775078,134.04,134.0,0.05504629]
[1765253460273,3.33,134.01,134.0,0.05504629]
[1765253460871,9.0656467,134.01,134.0,0.05504629]
[1765253461175,3.33,134.01,134.0,0.05504629]
[1765253462676,3.36879362,134.02,134.0,0.05504629]
[1765253474580,0.04879362,134.02,134.0,6.77074629]
[1765253474782,3.36879362,134.02,134.0,6.77074629]
[1765253485192,5.74364953,134.01,134.0,6.77074629]
[1765253489996,9.08364953,134.01,134.0,6.77074629]
[1765253500414,5.74364953,134.01,134.0,125.77074629]
[1765253502712,9.08364953,134.01,134.0,125.77074629]
[1765253509105,3.37202995,134.01,134.0,125.77074629]
[1765253509301,2.995e-05,134.01,134.0,125.77074629]
[1765253510613,0.04879362,134.02,134.0,125.77074629]
[1765253510816,0.04879362,134.02,134.01,1.46290379]
[1765253511508,6.97270629,134.05,134.04,6.7138]
[1765253511715,3.12,134.07,134.04,70.1538]
[1765253512018,6.97270629,134.11,134.08,104.4055]
[1765253512209,3.12,134.2,134.14,104.3588]
[1765253512415,3.12,134.2,134.19,1.46290379]
[1765253512617,3.12,134.2,134.19,64.90290379]
[1765253513011,3.12,134.2,134.19,63.44]
[1765253513905,3.12,134.2,134.14,1.46290379]
[1765253514311,3.12,134.2,134.15,63.44]
[1765253514713,3.12,134.2,134.16,1.46290379]
[1765253514917,3.12,134.2,134.18,1.46290379]
[1765253515216,3.1741047,134.21,134.19,63.42]
[1765253515417,3.1741047,134.21,134.2,1.46290379]
[1765253516212,0.0541047,134.21,134.2,1.46290379]
[1765253519512,0.0541047,134.21,134.19,125.706]
[1765253519718,0.0541047,134.21,134.2,64.86290379]
[1765253521122,3.1741047,134.21,134.17,0.04970172]
[1765253521417,3.1741047,134.21,134.18,63.4]
[1765253521622,3.1741047,134.21,134.19,63.38]
[1765253525216,3.1741047,134.21,134.17,0.04970172]
[1765253525615,3.1741047,134.21,134.18,63.38]
[1765253527626,3.1741047,134.21,134.17,0.04970172]
[1765253527832,3.1741047,134.21,134.19,63.38]
[1765253529425,3.1741047,134.21,134.17,0.04970172]
[1765253529725,3.1741047,134.21,134.18,63.36]
[1765253530929,3.1741047,134.21,134.17,0.04970172]
[1765253531130,3.1741047,134.21,134.18,63.36]
[1765253538936,0.0541047,134.21,134.18,63.36]
[1765253539328,3.4141047,134.21,134.18,63.36]
[1765253539627,3.4141047,134.21,134.17,119.04970172]
[1765253540531,3.4141047,134.21,134.17,125.75680172]
[1765253540738,3.4141047,134.21,134.17,0.04970172]
[1765253542642,3.36,134.2,134.17,0.04970172]
[1765253543736,3.36,134.18,134.17,0.04970172]
[1765253543943,3.36,134.17,134.1,2.27953201]
[1765253544847,3.41330748,134.15,134.12,0.05103604]
[1765253548742,10.12180748,134.15,134.12,0.05103604]
[1765253548947,3.36,134.14,134.12,0.05103604]
[1765253553250,3.36,134.13,134.12,0.05103604]
[1765253554137,8.95862385,134.13,134.12,0.05103604]
[1765253554538,3.36,134.12,134.08,125.7116]
[1765253554750,3.36,134.1,134.08,119.0]
[1765253554946,3.36,134.1,134.06,125.7125]
[1765253555744,0.0534975,134.09,134.07,0.04803799]
[1765253555949,3.4134975,134.09,134.07,119.04803799]
[1765253556752,8.97044604,134.08,134.07,119.04803799]
[1765253558348,3.36,134.08,134.07,119.04803799]
[1765253558547,8.96553299,134.08,134.07,119.04803799]
[1765253560053,3.36,134.08,134.07,119.04803799]
[1765253560459,0.0534975,134.09,134.07,119.04803799]
[1765253562965,3.4134975,134.09,134.07,119.04803799]
[1765253564161,3.4134975,134.09,134.07,0.04803799]
[1765253565457,3.36,134.08,134.07,0.04803799]
[1765253573566,3.16,134.07,134.04,119.0]
[1765253573863,3.16,134.07,134.02,127.99403201]
[1765253574565,3.21351801,134.06,134.03,0.02036924]
[1765253574963,0.05351801,134.06,134.03,0.02036924]
[1765253575763,3.21351801,134.06,134.03,0.02036924]
[1765253579169,3.21351801,134.06,134.03,119.02036924]